bitfinex/quotes_SOLUSD_20250207
["timestamp","ask_amount","ask_price","bid_price","bid_amount"]
[1738922204980,0.063,197.47,197.46,1.063]
[1738922205281,0.063,197.47,197.46,21.30049217]
[1738922206389,0.063,197.47,197.46,172.9123407]
[1738922206557,0.063,197.47,197.46,173.15273391]
[1738922207363,0.063,197.47,197.46,173.65469391]
[1738922207569,18.47788538,197.6,197.58,2.0]
[1738922207979,18.47788538,197.61,197.58,2.0]
[1738922208368,18.47788538,197.61,197.58,1.0]
[1738922208676,53.47578538,197.59,197.58,1.0]
[1738922210281,29.937,197.59,197.58,2.0]
[1738922210577,48.41488538,197.59,197.57,1.0]
[1738922210771,18.47788538,197.58,197.56,1.0]
[1738922210977,53.47588538,197.59,197.57,1.0]
[1738922211380,53.47588538,197.59,197.56,1.0]
[1738922212589,18.47788538,197.58,197.56,1.0]
[1738922212906,18.47788538,197.57,197.54,1.0]
[1738922213066,18.47788538,197.57,197.51,1.0]
[1738922213067,18.47788538,197.55,197.51,1.0]
[1738922213389,18.47788538,197.52,197.51,1.0]
[1738922213683,18.47788538,197.52,197.5,2.0]
[1738922214078,18.47788538,197.52,197.5,1.0]
[1738922214882,5.063,197.51,197.5,1.0]
[1738922215383,5.063,197.51,197.5,2.0]
[1738922216198,18.47788538,197.53,197.52,1.0]
[1738922216990,5.0613,197.58,197.55,1.0]
[1738922217198,18.47788538,197.57,197.55,1.0]
[1738922217384,18.47788538,197.56,197.54,1.0]
[1738922217576,18.47788538,197.55,197.53,1.0]
[1738922217777,18.47788538,197.54,197.53,1.0]
[1738922218096,23.54008538,197.54,197.53,1.0]
[1738922218272,23.54008538,197.54,197.52,1.0]
[1738922218477,18.47788538,197.53,197.5,2.0]
[1738922218795,18.47788538,197.52,197.5,2.0]
[1738922219610,18.47788538,197.51,197.48,1.0]
[1738922219895,18.47788538,197.49,197.46,1.063]
[1738922220097,18.47788538,197.47,197.46,1.063]
[1738922220304,23.54188538,197.47,197.46,1.063]
[1738922220783,23.54188538,197.47,197.46,0.063]
[1738922223297,5.064,197.47,197.46,1.063]
[1738922223797,18.47788538,197.48,197.46,1.063]
[1738922223988,23.54158538,197.49,197.46,2.063]
[1738922224178,23.54158538,197.49,197.46,1.063]
[1738922224379,23.54158538,197.49,197.46,0.063]
[1738922224579,18.47788538,197.48,197.46,0.063]
[1738922226789,18.47788538,197.47,197.46,0.063]
[1738922227379,18.72886538,197.47,197.46,0.063]
[1738922227585,18.85435538,197.47,197.46,0.063]
[1738922228788,23.91835538,197.47,197.46,0.063]
[1738922229801,23.91835538,197.47,197.39,1.03]
[1738922229802,0.12549,197.45,197.42,1.0]
[1738922230008,18.47788538,197.43,197.42,1.0]
[1738922230398,18.60337538,197.43,197.42,1.0]
[1738922231723,23.66837538,197.43,197.4,1.0]
[1738922232014,18.47788538,197.41,197.4,1.0]
[1738922232626,18.47788538,197.42,197.4,1.0]
[1738922232791,23.54318538,197.42,197.41,1.0]
[1738922232992,19.98878538,197.44,197.42,1.0]
[1738922233210,5.0648,197.44,197.43,1.0]
[1738922234710,5.0648,197.44,197.42,1.0]
[1738922234711,18.50788538,197.47,197.45,1.0]
[1738922235533,23.57208538,197.47,197.45,1.0]
[1738922235695,18.47788538,197.46,197.45,1.0]
[1738922236096,18.47788538,197.46,197.44,1.0]
[1738922236299,18.60337538,197.45,197.44,1.0]
[1738922236902,5.0648,197.44,197.43,1.0]
[1738922237113,23.54268538,197.44,197.43,1.0]
[1738922237629,23.66817538,197.44,197.42,1.0]
[1738922237805,18.60337538,197.43,197.41,1.0]
[1738922238122,18.47788538,197.42,197.41,1.0]
[1738922239599,5.0653,197.42,197.41,1.0]
[1738922241723,23.54318538,197.42,197.41,1.0]
[1738922244022,5.0653,197.42,197.41,1.0]
[1738922244823,5.0653,197.42,197.41,2.0]
[1738922245219,18.47788538,197.45,197.43,1.0]
[1738922245414,12.6902,197.47,197.45,2.0]
[1738922245415,18.50788538,197.47,197.45,2.0]
[1738922245613,18.47788538,197.46,197.45,1.0]
[1738922246213,23.66767538,197.46,197.44,1.0]
[1738922246415,18.47788538,197.45,197.43,1.0]
[1738922246607,18.47788538,197.44,197.43,1.0]
[1738922247606,23.54268538,197.44,197.43,1.0]
[1738922248620,23.66817538,197.44,197.43,1.0]
[1738922249514,0.12549,197.43,197.41,1.0]
[1738922249715,18.47788538,197.42,197.41,1.0]
[1738922250115,18.60337538,197.43,197.41,1.0]
[1738922250316,18.60337538,197.43,197.42,1.0]
[1738922250724,23.66837538,197.43,197.42,1.0]
[1738922251623,23.66837538,197.43,197.41,1.0]
[1738922251806,5.19049,197.43,197.42,1.0]
[1738922253127,0.03,197.47,197.46,2.0]
[1738922253512,0.03,197.47,197.46,1.0]
[1738922253830,23.57188538,197.47,197.46,1.0]
[1738922255219,23.69737538,197.47,197.46,1.0]
[1738922255923,5.094,197.47,197.46,1.0]
[1738922256123,0.03,197.47,197.46,2.0]
[1738922256433,0.03,197.47,197.46,20.47788538]
[1738922256728,0.03,197.47,197.46,2.0]
[1738922260642,0.03,197.47,197.46,1.0]
[1738922261535,0.03,197.47,197.46,2.0]
[1738922266534,18.50788538,197.47,197.45,2.0]
[1738922266727,18.47788538,197.46,197.45,1.0]
[1738922267744,18.60337538,197.46,197.45,1.0]
[1738922268117,23.66767538,197.46,197.45,1.0]
[1738922269219,5.18979,197.46,197.45,1.0]
[1738922269639,0.12549,197.45,197.44,1.0]
[1738922269941,5.0643,197.46,197.44,2.0]
[1738922270436,5.0941,197.47,197.45,2.0]
[1738922270656,5.21959,197.47,197.46,1.0]
[1738922275641,5.0941,197.47,197.46,1.0]
[1738922275835,5.0941,197.47,197.46,2.0]
[1738922276444,5.0941,197.47,197.46,1.0]
[1738922277246,5.0941,197.47,197.46,2.0]
[1738922277634,5.0941,197.47,197.46,1.0]
[1738922277940,16.91959729,197.47,197.46,1.0]
[1738922278241,17.17057729,197.47,197.46,1.0]
[1738922278944,11.85549729,197.47,197.46,2.0]
[1738922279119,11.85549729,197.47,197.46,1.0]
[1738922280552,16.91949729,197.47,197.46,1.0]
[1738922280736,0.12549,197.46,197.44,1.0]
[1738922281047,11.82549729,197.45,197.44,1.0]
[1738922284231,11.82549729,197.45,197.44,2.0]
[1738922284431,11.95098729,197.45,197.44,1.0]
[1738922284654,17.01548729,197.45,197.44,1.0]
[1738922285052,0.12549,197.44,197.43,1.0]
[1738922285653,17.14127729,197.44,197.43,1.0]
[1738922288757,17.14127729,197.44,197.43,1.063]
[1738922289247,5.31578,197.44,197.43,1.063]
[1738922289657,0.25098,197.44,197.43,1.063]
[1738922290057,11.82549729,197.46,197.44,1.0]
[1738922290262,11.98098729,197.47,197.45,1.0]
[1738922291339,0.03,197.47,197.46,1.0]
[1738922291860,0.28098,197.47,197.46,1.0]
[1738922292367,0.28098,197.47,197.44,2.0]
[1738922292660,0.12549,197.45,197.44,2.0]
[1738922294465,11.95098729,197.45,197.44,2.0]
[1738922295473,0.12549,197.45,197.44,2.0]
[1738922297472,0.03,197.47,197.45,2.0]
[1738922297767,0.28098,197.47,197.46,2.0]
[1738922298061,12.10647729,197.47,197.46,2.0]
[1738922298370,12.10647729,197.47,197.46,1.0]
[1738922298576,12.10647729,197.47,197.46,2.0]
[1738922299472,12.10647729,197.47,197.46,1.0]
[1738922299775,17.29596729,197.47,197.46,1.0]
[1738922300947,0.15549,197.47,197.46,2.0]
[1738922301343,0.03,197.47,197.46,2.0]
[1738922304647,11.98098729,197.47,197.46,2.0]
[1738922305481,12.10647729,197.47,197.46,1.0]
[1738922307085,12.10647729,197.47,197.46,2.0]
[1738922307279,0.28098,197.47,197.46,2.0]
[1738922308080,0.03,197.47,197.46,2.0]
[1738922311988,0.03,197.47,197.46,7.0643]
[1738922313194,0.03,197.47,197.46,13.6076]
[1738922313398,0.03,197.47,197.46,26.19259393]
[1738922315295,0.03,197.47,197.46,163.39259393]
[1738922315473,0.03,197.47,197.46,162.63309729]
[1738922319096,0.03,197.47,197.46,13.6076]
[1738922319780,0.03,197.47,197.46,2.0]
[1738922320900,0.03,197.47,197.46,22.0]
[1738922321999,0.03,197.47,197.46,2.0]
[1738922323794,11.85549729,197.47,197.46,2.0]
[1738922324893,11.85549729,197.47,197.46,2.063]
[1738922331379,11.98098729,197.47,197.46,2.063]
[1738922332607,11.85549729,197.47,197.46,2.063]
[1738922334100,0.03,197.47,197.46,2.063]
[1738922348125,0.03,197.47,197.46,27.1273]
[1738922348307,0.03,197.47,197.46,38.95279729]
[1738922349318,0.03,197.47,197.46,27.88670713]
[1738922349911,0.03,197.47,197.46,27.1273]
[1738922352610,0.03,197.47,197.46,38.95279729]
[1738922352811,0.03,197.47,197.46,39.712189]
[1738922354928,0.03,197.47,197.46,176.912189]
[1738922355123,0.03,197.47,197.46,176.15279729]
[1738922359429,0.03,197.47,197.46,47.06249729]
[1738922359740,11.82549729,197.58,197.57,2.0]
[1738922359917,16.88669729,197.58,197.56,2.0]
[1738922360117,11.82549729,197.57,197.56,2.0]
[1738922360841,11.82549729,197.57,197.56,1.0]
[1738922361011,11.82549729,197.57,197.56,2.0]
[1738922361216,11.82549729,197.57,197.56,1.0]
[1738922361937,11.82549729,197.57,197.55,2.0]
[1738922361938,16.88689729,197.57,197.55,2.0]
[1738922362122,11.82549729,197.56,197.55,2.0]
[1738922362524,11.82549729,197.56,197.55,1.0]
[1738922362824,11.82549729,197.56,197.55,2.0]
[1738922363039,16.88719729,197.56,197.55,2.0]
[1738922363228,16.88719729,197.56,197.55,1.0]
[1738922363526,16.88719729,197.56,197.55,2.0]
[1738922365332,11.82549729,197.56,197.55,2.0]
[1738922369721,41.76249729,197.59,197.56,2.0]
[1738922369929,41.76249729,197.59,197.58,1.0]
[1738922370322,29.937,197.59,197.58,2.0]
[1738922370722,41.76249729,197.59,197.58,2.0]
[1738922371421,29.937,197.59,197.58,2.0]
[1738922372030,29.967,197.59,197.58,2.0]
[1738922373126,41.79249729,197.59,197.58,2.0]
[1738922375246,41.79249729,197.59,197.58,1.0]
[1738922375449,41.79249729,197.59,197.58,2.0]
[1738922376144,47.10437729,197.59,197.58,1.0]
[1738922377143,41.79249729,197.59,197.58,2.0]
[1738922381248,29.967,197.59,197.58,2.0]
[1738922381885,41.79249729,197.59,197.58,2.0]
[1738922386265,41.79249729,197.59,197.58,1.0]
[1738922386460,41.79249729,197.59,197.58,2.0]
[1738922387468,29.967,197.59,197.58,2.0]
[1738922388484,29.967,197.59,197.58,7.0612]
[1738922389767,29.967,197.59,197.58,156.08669729]
[1738922390395,29.967,197.59,197.58,144.2612]
[1738922391701,29.967,197.59,197.58,2.0]
[1738922391894,29.967,197.59,197.58,22.0]
[1738922392088,41.79249729,197.59,197.58,22.0]
[1738922392982,41.79249729,197.59,197.58,2.0]
[1738922393886,46.85339729,197.59,197.58,2.0]
[1738922397717,46.85339729,197.59,197.58,1.0]
[1738922397908,46.85339729,197.59,197.58,2.0]
[1738922398488,46.97888729,197.59,197.58,2.0]
[1738922398691,46.97888729,197.59,197.58,1.0]
[1738922399383,46.97888729,197.59,197.58,2.0]
[1738922399586,46.97888729,197.59,197.58,1.0]
[1738922399787,0.12549,197.58,197.57,2.0]
[1738922400017,11.95098729,197.58,197.57,2.0]
[1738922400513,11.82549729,197.58,197.57,2.0]
[1738922401587,11.95098729,197.58,197.57,2.0]
[1738922402106,17.01218729,197.58,197.57,2.0]
[1738922402309,0.12549,197.57,197.55,1.0]
[1738922402506,11.95098729,197.56,197.55,1.0]
[1738922403005,0.12549,197.55,197.53,1.0]
[1738922403215,11.95098729,197.54,197.53,1.0]
[1738922403388,11.95098729,197.54,197.51,2.0]
[1738922403389,0.12549,197.53,197.51,2.0]
[1738922403588,11.95098729,197.52,197.51,2.0]
[1738922405191,11.95098729,197.52,197.51,1.0]
[1738922405691,11.82549729,197.52,197.51,2.0]
[1738922406822,11.82549729,197.54,197.52,2.0]
[1738922407112,11.82549729,197.55,197.53,2.0]
[1738922407313,11.82549729,197.55,197.54,1.0]
[1738922407692,11.82549729,197.55,197.54,2.0]
[1738922408310,11.82549729,197.55,197.54,1.0]
[1738922408614,11.82549729,197.55,197.54,2.0]
[1738922409604,11.82549729,197.57,197.55,2.0]
[1738922409911,11.82549729,197.58,197.57,1.0]
[1738922410103,11.82549729,197.58,197.57,2.0]
[1738922410510,41.79249729,197.59,197.58,1.0]
[1738922410693,41.79249729,197.59,197.58,2.0]
[1738922412190,41.79249729,197.59,197.58,1.0]
[1738922412191,46.85339729,197.59,197.58,1.0]
[1738922412397,46.85339729,197.59,197.57,1.0]
[1738922412398,46.85339729,197.59,197.57,2.0]
[1738922412609,11.82549729,197.58,197.57,2.0]
[1738922412821,11.82549729,197.58,197.52,5.0625]
[1738922412822,11.82549729,197.58,197.56,2.0]
[1738922413419,35.0279,197.59,197.57,1.0]
[1738922413622,11.82549729,197.58,197.57,1.0]
[1738922413924,0.12549,197.57,197.56,2.0]
[1738922414298,5.0614,197.57,197.56,2.0]
[1738922414717,11.82549729,197.57,197.56,2.0]
[1738922416019,35.0282,197.59,197.57,1.0]
[1738922416020,11.82549729,197.58,197.57,1.0]
[1738922416220,29.967,197.59,197.58,2.0]
[1738922417618,29.967,197.59,197.58,7.0612]
[1738922419116,29.967,197.59,197.58,19.64568271]
[1738922419307,29.967,197.59,197.58,26.26628271]
[1738922419508,29.967,197.59,197.58,163.46628271]
[1738922419814,29.967,197.59,197.58,177.37012582]
[1738922420008,29.967,197.59,197.58,176.37012582]
[1738922420324,29.967,197.59,197.58,177.37012582]
[1738922420819,29.967,197.59,197.58,163.95827729]
[1738922421194,0.063,197.66,197.65,2.0]
[1738922421396,0.063,197.66,197.65,42.47929729]
[1738922421708,7.93382055,197.73,197.72,2.0]
[1738922421905,19.75931784,197.73,197.72,2.0]
[1738922422109,33.17116637,197.73,197.72,1.0]
[1738922422312,19.75931784,197.73,197.72,2.0]
[1738922422517,7.93382055,197.73,197.72,2.0]
[1738922425211,11.82549729,197.75,197.74,2.0]
[1738922425416,11.85549729,197.78,197.77,2.0]
[1738922426311,0.03,197.78,197.77,2.0]
[1738922427228,0.03,197.78,197.77,2.75841789]
[1738922427425,0.03,197.78,197.77,7.81471789]
[1738922427818,0.03,197.78,197.77,22.0]
[1738922428834,11.85549729,197.78,197.77,2.0]
[1738922429619,0.03,197.78,197.77,2.0]
[1738922430018,0.03,197.78,197.77,7.0563]
[1738922430512,0.03,197.78,197.77,7.81455497]
[1738922431035,0.03,197.78,197.77,7.0563]
[1738922431231,0.03,197.78,197.77,2.0]
[1738922433315,11.85549729,197.78,197.77,2.0]
[1738922433709,11.85549729,197.78,197.77,7.0563]
[1738922433710,0.03,197.78,197.77,7.0563]
[1738922435520,0.03,197.78,197.77,7.81451634]
[1738922439046,0.03,197.78,197.77,2.0]
[1738922439721,11.85549729,197.78,197.77,2.0]
[1738922440619,30.32344582,197.78,197.77,1.0]
[1738922440820,13.66282853,197.77,197.75,2.0]
[1738922441029,13.66282853,197.77,197.64,155.16239729]
[1738922441030,11.82549729,197.76,197.73,1.0]
[1738922441246,13.66282853,197.73,197.72,1.0]
[1738922441438,0.25098,197.73,197.68,1.0]
[1738922441627,13.66282853,197.71,197.65,2.0]
[1738922441830,13.66282853,197.69,197.64,1.0]
[1738922442022,1.5565,197.72,197.65,1.0]
[1738922442228,5.0579,197.71,197.67,1.0]
[1738922442429,13.66282853,197.7,197.65,2.0]
[1738922442629,13.66282853,197.7,197.68,1.0]
[1738922443051,1.5565,197.72,197.7,1.0]
[1738922443237,23.50150471,197.71,197.68,1.0]
[1738922443442,23.50150471,197.71,197.67,0.76]
[1738922443443,13.66282853,197.7,197.67,1.0]
[1738922443825,18.44360471,197.68,197.67,1.0]
[1738922444128,18.44360471,197.68,197.67,1.76]
[1738922444626,1.5565,197.72,197.67,1.76]
[1738922444627,18.44360471,197.69,197.67,1.76]
[1738922444837,18.44360471,197.71,197.69,1.76]
[1738922445036,18.44360471,197.71,197.7,1.76]
[1738922445231,18.44360471,197.73,197.71,1.76]
[1738922445549,18.44360471,197.75,197.73,1.76]
[1738922445756,18.44360471,197.75,197.74,0.76]
[1738922446460,18.44360471,197.75,197.74,1.76]
[1738922446645,18.44360471,197.76,197.75,1.76]
[1738922449462,18.47360471,197.78,197.76,0.76]
[1738922449673,18.44360471,197.77,197.76,1.76]
[1738922451545,0.03,197.78,197.77,1.76]
[1738922452246,18.47360471,197.78,197.77,1.76]
[1738922452842,0.03,197.78,197.77,1.76]
[1738922453847,18.47360471,197.78,197.77,1.76]
[1738922454356,0.03,197.78,197.77,1.76]
[1738922455271,0.03,197.78,197.77,27.57457771]
[1738922458165,0.03,197.78,197.77,21.76]
[1738922458461,0.03,197.78,197.77,26.8163]
[1738922460133,0.03,197.78,197.77,46.25990471]
[1738922461342,0.03,197.78,197.77,45.25990471]
[1738922461651,0.03,197.78,197.77,46.25990471]
[1738922462959,0.03,197.78,197.77,47.25990471]
[1738922463463,0.03,197.78,197.77,47.38539471]
[1738922463464,0.0001,197.78,197.77,47.38539471]
[1738922463672,18.44360471,197.89,197.88,1.0]
[1738922463842,20.02300471,197.92,197.91,1.76]
[1738922464437,31.94867298,197.93,197.92,1.0]
[1738922464638,18.53682445,197.93,197.92,1.76]
[1738922464862,0.09321974,197.93,197.92,1.76]
[1738922465849,18.53682445,197.93,197.92,1.76]
[1738922466052,32.19965298,197.93,197.92,0.76]
[1738922466250,13.66282853,197.92,197.89,0.76]
[1738922466445,13.66282853,197.92,197.79,6.363]
[1738922466446,13.66282853,197.92,197.86,1.76]
[1738922466648,13.66282853,197.92,197.87,1.0]
[1738922466942,13.66282853,197.92,197.77,18.44360471]
[1738922466943,0.25098,197.88,197.81,1.76]
[1738922467143,32.10643324,197.82,197.81,1.0]
[1738922467440,13.66282853,197.81,197.78,0.76]
[1738922467641,13.41184853,197.79,197.78,0.76]
[1738922467842,32.10643324,197.79,197.78,0.76]
[1738922468143,0.25098,197.76,197.74,0.76]
[1738922468343,0.25098,197.76,197.72,0.76]
[1738922468567,0.25098,197.71,197.7,1.76]
[1738922468868,0.25098,197.71,197.69,1.0]
[1738922469055,0.25098,197.69,197.64,0.76]
[1738922469246,13.66282853,197.67,197.63,1.76]
[1738922469447,13.66282853,197.67,197.63,0.76]
[1738922469660,32.10643324,197.64,197.63,1.76]
[1738922470085,31.85545324,197.64,197.63,1.76]
[1738922470453,32.10643324,197.64,197.63,1.76]
[1738922470654,43.18768482,197.64,197.63,1.76]
[1738922471163,29.52485629,197.64,197.63,1.76]
[1738922471553,43.18768482,197.64,197.63,1.0]
[1738922471775,42.93670482,197.64,197.63,1.76]
[1738922472259,29.52485629,197.64,197.63,1.76]
[1738922472879,43.06219482,197.64,197.63,1.0]
[1738922473085,0.12549,197.62,197.61,1.76]
[1738922473261,43.18768482,197.62,197.61,1.0]
[1738922473576,0.25098,197.6,197.57,1.0]
[1738922473749,0.25098,197.6,197.55,1.0]
[1738922473949,0.25098,197.6,197.52,1.76]
[1738922474158,13.66282853,197.58,197.52,1.0]
[1738922474573,29.52485629,197.53,197.52,1.0]
[1738922475172,13.53733853,197.52,197.51,1.76]
[1738922475366,29.52485629,197.52,197.51,1.76]
[1738922475861,29.52485629,197.52,197.51,1.0]
[1738922476058,43.18768482,197.52,197.51,1.0]
[1738922476453,43.06219482,197.52,197.51,1.76]
[1738922476663,29.52485629,197.52,197.51,1.76]
[1738922476958,29.52485629,197.55,197.54,1.76]
[1738922477448,42.93670482,197.55,197.54,1.76]
[1738922477651,43.06219482,197.55,197.54,1.76]
[1738922477853,29.52485629,197.55,197.54,1.76]
[1738922478154,43.06219482,197.55,197.54,1.76]
[1738922478656,43.18768482,197.55,197.54,1.0]
[1738922478869,0.12549,197.54,197.53,0.76]
[1738922479049,13.41184853,197.53,197.52,1.76]
[1738922479252,42.93670482,197.53,197.52,1.76]
[1738922479970,43.18768482,197.53,197.52,1.0]
[1738922480169,0.25098,197.52,197.51,1.76]
[1738922480479,43.18768482,197.52,197.51,1.76]
[1738922481177,29.52485629,197.53,197.51,1.76]
[1738922481374,29.52485629,197.53,197.52,1.0]
[1738922481570,42.93670482,197.53,197.52,1.76]
[1738922481960,43.06219482,197.53,197.52,1.76]
[1738922482157,48.25018482,197.53,197.52,1.0]
[1738922482385,13.53733853,197.52,197.51,1.0]
[1738922482555,43.06219482,197.52,197.51,1.0]
[1738922482757,0.12549,197.51,197.48,0.063]
[1738922482959,43.18768482,197.49,197.48,0.063]
[1738922483582,43.18768482,197.49,197.48,0.823]
[1738922484382,49.78758482,197.49,197.48,0.063]
[1738922484570,13.66282853,197.48,197.46,0.063]
[1738922484770,29.52485629,197.47,197.46,0.063]
[1738922485287,43.18768482,197.47,197.46,0.063]
[1738922485882,43.18768482,197.47,197.46,0.823]
[1738922487484,48.25168482,197.47,197.46,0.823]
[1738922487686,43.18768482,197.47,197.46,0.823]
[1738922489395,43.06219482,197.47,197.46,0.823]
[1738922490265,43.18768482,197.47,197.46,0.823]
[1738922491191,48.25168482,197.47,197.46,0.063]
[1738922491391,43.18768482,197.47,197.46,0.823]
[1738922491576,29.52485629,197.47,197.46,0.823]
[1738922491773,0.11110575,197.49,197.46,0.823]
[1738922491774,0.11110575,197.49,197.48,0.76]
[1738922492384,43.29879057,197.49,197.48,0.76]
[1738922492886,29.63596204,197.49,197.48,0.76]
[1738922493272,0.11110575,197.49,197.48,0.76]
[1738922493477,0.11110575,197.49,197.48,5.8238]
[1738922494801,0.11110575,197.49,197.48,20.76]
[1738922494987,43.04781057,197.49,197.48,0.76]
[1738922495165,13.66282853,197.48,197.47,0.76]
[1738922495365,18.47584853,197.47,197.46,0.823]
[1738922495669,48.25168482,197.47,197.46,0.063]
[1738922496287,13.66282853,197.46,197.44,0.063]
[1738922496500,43.18768482,197.45,197.44,0.063]
[1738922497585,48.25218482,197.45,197.44,0.063]
[1738922498162,0.12549,197.43,197.37,0.76]
[1738922498366,72.71254111,197.4,197.37,0.76]
[1738922498569,72.71254111,197.4,197.35,0.76]
[1738922499068,72.83803111,197.4,197.34,0.76]
[1738922499283,72.83803111,197.4,197.36,0.76]
[1738922499674,77.90383111,197.4,197.35,0.76]
[1738922499889,13.66282853,197.35,197.33,0.76]
[1738922500182,13.41184853,197.33,197.32,0.76]
[1738922500375,42.93670482,197.33,197.32,0.76]
[1738922500991,29.52485629,197.34,197.33,0.76]
[1738922501195,29.52485629,197.37,197.35,0.76]
[1738922501363,29.52485629,197.38,197.37,0.76]
[1738922501798,29.52485629,197.39,197.37,0.76]
[1738922502090,29.52485629,197.41,197.4,0.76]
[1738922502277,29.52485629,197.42,197.41,0.76]
[1738922502687,42.93670482,197.42,197.41,0.76]
[1738922502887,0.25098,197.4,197.39,0.76]
[1738922503096,43.18768482,197.4,197.39,0.76]
[1738922503389,29.52485629,197.4,197.39,0.76]
[1738922503590,29.52485629,197.41,197.4,0.76]
[1738922503804,5.064,197.47,197.41,0.76]
[1738922504093,13.66282853,197.46,197.42,0.76]
[1738922504473,13.77339287,197.43,197.42,0.76]
[1738922504673,72.82310545,197.43,197.4,0.063]
[1738922504980,72.71254111,197.41,197.4,0.063]
[1738922505583,18.72862853,197.4,197.35,0.76]
[1738922505788,43.18768482,197.36,197.35,0.76]
[1738922506493,42.93670482,197.36,197.35,0.76]
[1738922507069,43.18768482,197.36,197.35,0.76]
[1738922509482,18.72992853,197.35,197.33,0.76]
[1738922509793,13.66282853,197.33,197.32,0.76]
[1738922509995,43.18768482,197.33,197.32,0.76]
[1738922510587,42.93670482,197.33,197.32,0.76]
[1738922511177,43.18768482,197.33,197.32,0.76]
[1738922511392,13.66282853,197.32,197.31,0.823]
[1738922511600,72.71254111,197.32,197.31,0.823]
[1738922512203,72.71254111,197.32,197.31,0.063]
[1738922512714,43.18768482,197.32,197.31,0.823]
[1738922513080,42.93670482,197.32,197.31,0.823]
[1738922513979,43.18768482,197.32,197.31,0.823]
[1738922515103,48.25558482,197.32,197.31,0.063]
[1738922515405,13.66282853,197.31,197.28,0.76]
[1738922515598,29.52485629,197.29,197.28,0.76]
[1738922515793,0.12549,197.25,197.24,0.063]
[1738922516104,0.12549,197.25,197.19,0.03]
[1738922516105,0.25098,197.22,197.19,0.03]
[1738922516306,13.66282853,197.19,197.16,0.76]
[1738922516614,43.18768482,197.17,197.16,0.76]
[1738922517187,43.18768482,197.17,197.1,5.0734]
[1738922517188,13.66282853,197.16,197.15,0.823]
[1738922517387,43.18768482,197.16,197.15,0.823]
[1738922517707,12.675,197.24,197.15,0.823]
[1738922517708,29.52485629,197.17,197.15,0.823]
[1738922517907,29.52485629,197.18,197.17,0.76]
[1738922518218,29.52485629,197.19,197.18,0.76]
[1738922518519,42.93670482,197.19,197.18,0.76]
[1738922518919,43.18768482,197.19,197.18,0.76]
[1738922519120,13.41184853,197.18,197.17,0.76]
[1738922519323,0.25098,197.17,197.16,0.76]
[1738922519629,29.77583629,197.17,197.15,0.823]
[1738922519916,43.18768482,197.16,197.15,0.823]
[1738922520122,43.18768482,197.16,197.15,0.063]
[1738922521422,18.73502853,197.15,197.13,0.76]
[1738922521940,18.73502853,197.15,197.14,0.76]
[1738922522835,43.18768482,197.15,197.14,0.76]
[1738922523905,29.52485629,197.15,197.14,0.76]
[1738922524614,48.35337782,197.15,197.14,0.76]
[1738922524824,13.66282853,197.14,197.11,0.76]
[1738922525110,43.18768482,197.12,197.11,0.76]
[1738922526394,29.52485629,197.12,197.11,0.76]
[1738922526593,0.093493,197.15,197.12,0.76]
[1738922526821,29.52485629,197.14,197.12,0.76]